{"text_format":"1","workbook":"xlsx","n_sheets":2,"sheets":["Valiutų konvertavimas","Konvertavimo kursai"],"not_rendered":{"charts":0,"images":1,"macros":1,"external_links":0,"defined_names":7,"comments":0,"pivot_tables":0},"unopened":[],"bounds":{"document_bytes":16777216,"sheet_cells":100000,"rows_first":2000,"rows_last":500,"rows_between":2000,"halvings":0,"cell_chars":16384,"cell_head_chars":4096},"cells_cut":0,"cells_raw":0,"read":"whole","date_system":"1900"}

{"sheet":"Valiutų konvertavimas","index":0,"n_rows":10,"n_cols":5,"rows_kept":10,"cut":false,"hidden":false,"merged":[]}
[]
[]
[]
[]
[null,null,null,41,6000]
[]
[]
[]
[]
[null,null,null,27,{"$f":"IFERROR(IF(OR(FromCurrency=0,ToCurrency=0),\"\",FromAmount/OFFSET(Valiutos,FromCurrency-1,3,1,1)*OFFSET(Valiutos,ToCurrency-1,3,1,1)),\"\")","v":35760}]

{"sheet":"Konvertavimo kursai","index":1,"n_rows":59,"n_cols":5,"rows_kept":59,"cut":false,"hidden":false,"merged":[]}
["Konvertavimo kursai"]
["Duomenys šiame lape yra iš „MSN Money“ žiniatinklio užklausos. Jie yra atnaujinami spustelėjus mygtuką Naujinti konvertavimo kursus, kuris yra Valiutų konvertavimo lape."]
[null,null,"Currency Rates Provided by MSN Money"]
[null,null,"Click here to visit MSN Money"]
[]
[null,"Sąrašo pavadinimas","Pavadinimas","JAV doleriais","JAV doleriais"]
[null,{"$f":"IF(ISERROR(FIND(\" į JAV dolerį\",C7)),C7,LEFT(C7,FIND(\" į JAV dolerį\",C7)-1))","v":"Argentinos peso"},"Argentinos peso į JAV dolerį",0.22427,4.4589999999999996]
[null,{"$f":"IF(ISERROR(FIND(\" į JAV dolerį\",C8)),C8,LEFT(C8,FIND(\" į JAV dolerį\",C8)-1))","v":"Australijos dolerio"},"Australijos dolerio į JAV dolerį",0.98492999999999997,1.0149999999999999]
[null,"Bahreino dinaro","Bahreino dinaro į JAV dolerį",2.6482999999999999,0.378]
[null,"Bolivijos boliviano","Bolivijos boliviano į JAV dolerį",0.14451,6.92]
[null,"Brazilijos realo","Brazilijos realo į JAV dolerį",0.49278,2.0289999999999999]
[null,"Didžiosios Britanijos svaro","Didžiosios Britanijos svaro į JAV dolerį",1.5825,0.63200000000000001]
[null,"Kanados dolerio","Kanados dolerio į JAV dolerį",0.98038000000000003,1.02]
[null,"Čilės peso","Čilės peso į JAV dolerį",1.98E-3,504.8]
[null,"Kinijos juanio","Kinijos juanio į JAV dolerį",0.15812999999999999,6.3239999999999998]
[null,"Kolumbijos peso","Kolumbijos peso į JAV dolerį",5.5000000000000003E-4,1817]
[null,"Čekijos kronos","Čekijos kronos į JAV dolerį",5.0450000000000002E-2,19.823]
[null,"Danijos kroną","Danijos kroną į JAV dolerį",0.17208000000000001,5.8109999999999999]
[null,"Euro","Euro į JAV dolerį",1.2787999999999999,0.78200000000000003]
[null,"Egipto svaro*","Egipto svaro* į JAV dolerį",0.16556999999999999,6.04]
[null,"Honkongo dolerio ","Honkongo dolerio  į JAV dolerį",0.12877,7.766]
[null,"Vengrijos forinto ","Vengrijos forinto  į JAV dolerį",4.2900000000000004E-3,233.1]
[null,"Indijos rupijos ","Indijos rupijos  į JAV dolerį",1.8339999999999999E-2,54.54]
[null,"Indonezijos rupijos ","Indonezijos rupijos  į JAV dolerį",1.1E-4,9343]
[null,"Japonijos jenos ","Japonijos jenos  į JAV dolerį",1.2630000000000001E-2,79.209999999999994]
[null,"Jordanijos dinaro ","Jordanijos dinaro  į JAV dolerį",1.4065000000000001,0.71099999999999997]
[null,"Kenijos šilingo ","Kenijos šilingo  į JAV dolerį",1.184E-2,84.45]
[null,"Pietų Korėjos vono ","Pietų Korėjos vono  į JAV dolerį",8.5999999999999998E-4,1167]
[null,"Kuveito dinaro ","Kuveito dinaro  į JAV dolerį",3.5727000000000002,0.28000000000000003]
[null,"Maroko dirhamo ","Maroko dirhamo  į JAV dolerį",0.11468,8.7200000000000006]
[null,"Malaizijos ringito ","Malaizijos ringito  į JAV dolerį",0.31929000000000002,3.1320000000000001]
[null,"Meksikos peso ","Meksikos peso  į JAV dolerį",7.2590000000000002E-2,13.776999999999999]
[null,"Norvegijos kronos ","Norvegijos kronos  į JAV dolerį",0.16778999999999999,5.96]
[null,"Omano rialo ","Omano rialo  į JAV dolerį",2.5966999999999998,0.38500000000000001]
[null,"Peru naujojo solio ","Peru naujojo solio  į JAV dolerį",0.37411,2.673]
[null,"Filipinų peso ","Filipinų peso  į JAV dolerį",2.3140000000000001E-2,43.22]
[null,"Pakistano rupijos ","Pakistano rupijos  į JAV dolerį",1.0959999999999999E-2,91.27]
[null,"Saudo Arabijos realo ","Saudo Arabijos realo  į JAV dolerį",0.2666,3.7509999999999999]
[null,"Singapūro dolerio ","Singapūro dolerio  į JAV dolerį",0.78661999999999999,1.2709999999999999]
[null,"Pietų Afrikos rando ","Pietų Afrikos rando  į JAV dolerį",0.12053999999999999,8.2959999999999994]
[null,"Švedijos kronos ","Švedijos kronos  į JAV dolerį",0.13997000000000001,7.1440000000000001]
[null,"Šveicarijos franko ","Šveicarijos franko  į JAV dolerį",1.0648,0.93899999999999995]
[null,"Taivano dolerio ","Taivano dolerio  į JAV dolerį",3.3829999999999999E-2,29.561]
[null,"Tailando bato ","Tailando bato  į JAV dolerį",3.1940000000000003E-2,31.31]
[null,"Tuniso dinaro ","Tuniso dinaro  į JAV dolerį",0.63366999999999996,1.5780000000000001]
[null,"UAE dirhamo ","UAE dirhamo  į JAV dolerį",0.27221000000000001,3.6739999999999999]
[null,"JAV dolerio","JAV dolerio",1,1]
[null,"Venesuelos bolivaro ","Venesuelos bolivaro  į JAV dolerį",0.23282,4.2949999999999999]
[]
[]
[]
[null,null,"„MSN Money“",null,"„Microsoft Office“ naujinimas"]
[null,null,"Atraskite investuotojui skirtus įrankius, stulpelius ir kita!",null,"Gaukite naujausią „Microsoft Office“"]
[null,null,"Privatumas"]
[null,null,"Teisinė informacija"]
[null,null,"Reklama"]
[null,null,"„MSN Worldwide“"]
[null,null,"Apie mūsų reklamą"]
[null,null,"© 2012 Microsoft "]